[Event "Lichtenrader Herbst 2019"]
[Site "Berlin"]
[Date "2019.10.19"]
[Round "8.6"]
[White "Gebigke, Martin"]
[Black "Postler, Reinhard"]
[Result "0-1"]
[ECO "D45"]
[WhiteElo "2068"]
[BlackElo "2240"]
[Annotator "NA"]
[PlyCount "114"]
[EventDate "2019.10.12"]
[EventType "swiss"]
[EventCountry "GER"]
[SourceTitle "playchess.com"]
[Source "ChessBase"]
[SourceQuality "1"]
[TimeControl "40/5400+30:1800+30"]

1. d4 {[%emt 0:04:14]} d5 {[%emt 0:00:00]} 2. c4 {[%emt 0:00:08]} e6 {[%emt 0:00:00]} 3. Nf3 {[%emt 0:00:07]} c6 {[%emt 0:00:00]} 4. e3 {[%emt 0:01:22]} Nf6 {[%emt 0:00:04]} 5. Nc3 {[%emt 0:02:24]} Nbd7 {[%emt 0:00:06]} 6. Qc2 {[%emt 0:04:11]} Bd6 {[%emt 0:00:24]} 7. g4 {[%emt 0:06:45]} dxc4 {[%emt 0:11:33]} 8. Bxc4 {[%emt 0:00:06]} Nd5 {[%emt 0:00:40]} 9. Bd2 {[%emt 0:01:59]} N7b6 {[%emt 0:08:44]} 10. Be2 {[%emt 0:01:48]} Nxc3 {[%emt 0:01:13]} 11. bxc3 {[%emt 0:04:13]} c5 {[%emt 0:02:54]} 12. e4 {[%emt 0:13:49]} Qc7 {[%emt 0:04:35]} 13. Qd3 {[%emt 0:12:23]} Bd7 {[%emt 0:13:32]} 14. O-O {[%emt 0:04:40]} c4 {[%emt 0:04:59]} 15. Qe3 {[%emt 0:01:15]} h6 {[%emt 0:05:32]} 16. h4 {[%emt 0:04:56]} Be7 {[%emt 0:04:55]} 17. Kg2 {[%emt 0:05:09]} f6 {[%emt 0:03:11]} 18. h5 {[%emt 0:02:32]} O-O-O {[%emt 0:02:09]} 19. Nh4 {[%emt 0:05:11]} Rhe8 {[%emt 0:06:02]} 20. Ng6 {[%emt 0:01:02]} Bd6 {[%emt 0:00:21]} 21. f4 {[%emt 0:00:52]} f5 {[%emt 0:00:50]} 22. gxf5 {[%emt 0:08:47]} exf5 {[%emt 0:00:53]} 23. e5 {[%emt 0:00:34]} Bc6+ {[%emt 0:01:27]} 24. Bf3 {[%emt 0:00:47]} Bxf3+ {[%emt 0:04:30]} 25. Qxf3 {[%emt 0:00:22]} Ba3 {[%emt 0:00:24]} 26. Rab1 {[%emt 0:01:17]} Qd7 {[%emt 0:01:48]} 27. Be1 {[%emt 0:03:13]} Kb8 {[%emt 0:01:27]} 28. Bh4 {[%emt 0:02:10]} Rc8 {[%emt 0:00:01]} 29. Rfd1 {[%emt 0:00:38]} Nd5 {[%emt 0:00:26]} 30. Be1 {[%emt 0:00:50]} Rc6 {[%emt 0:00:32]} 31. Bd2 {[%emt 0:00:38]} Ra6 {[%emt 0:01:59]} 32. Re1 {[%emt 0:03:40]} Ra5 {[%emt 0:05:26]} 33. Re2 {[%emt 0:01:02]} Ra6 {[%emt 0:02:48]} 34. Kh3 {[%emt 0:01:10]} Ra5 {[%emt 0:04:13]} 35. Rg2 {[%emt 0:01:05]} Be7 {[%emt 0:00:55]} 36. Be1 {[%emt 0:01:42]} Bd8 {[%emt 0:02:58]} 37. Rgb2 {[%emt 0:00:36]} Bb6 {[%emt 0:00:02]} 38. Kg3 {[%emt 0:00:28]} Ra3 {[%emt 0:01:01]} 39. Nh4 {[%emt 0:00:18]} Rd8 {[%emt 0:01:47]} 40. Ng6 {[%emt 0:01:03]} Ka8 {[%emt 0:02:35]} 41. Rd1 {[%emt 0:18:18]} Ba5 {[%emt 0:01:44]} 42. Rc1 {[%emt 0:03:16]} a6 {[%emt 0:02:39]} 43. Kh2 {[%emt 0:02:19]} Rc8 {[%emt 0:02:08]} 44. Rcb1 {[%emt 0:02:37]} Rc7 {[%emt 0:02:58]} 45. Qe2 {[%emt 0:01:14]} Qe6 {[%emt 0:06:22]} 46. Qf3 {[%emt 0:00:37]} Bxc3 {[%emt 0:01:15]} 47. Bxc3 {[%emt 0:03:28]} Rxc3 {[%emt 0:00:12]} 48. Qd1 {[%emt 0:01:08]} Ne3 {[%emt 0:04:38]} 49. Qh1 {[%emt 0:01:07]} Nd5 {[%emt 0:01:31]} 50. Nf8 {[%emt 0:00:58]} Qc6 {[%emt 0:00:49]} 51. Ng6 {[%emt 0:00:23]} Rd3 {[%emt 0:00:32]} 52. Qg1 {[%emt 0:00:38]} c3 {[%emt 0:00:26]} 53. Rg2 {[%emt 0:00:11]} Ne3 {[%emt 0:00:21]} 54. Rg3 {[%emt 0:00:28]} c2 {[%emt 0:02:50]} 55. Rc1 {[%emt 0:00:08]} Ng4+ {[%emt 0:01:55]} 56. Kh3 {[%emt 0:00:20]} Qe4 {[%emt 0:00:31]} 57. Qg2 {[%emt 0:01:23]} Rcc3 {[%emt 0:00:37]} 0-1

[Event "Lichtenrader Herbst 2019"]
[Site "Berlin"]
[Date "2019.10.19"]
[Round "8.7"]
[White "Pixa, Richard"]
[Black "Katzir, Moshe"]
[Result "0-1"]
[ECO "D31"]
[WhiteElo "2075"]
[BlackElo "2125"]
[Annotator "NA"]
[PlyCount "89"]
[EventDate "2019.10.12"]
[EventType "swiss"]
[EventCountry "GER"]
[SourceTitle "playchess.com"]
[Source "ChessBase"]
[SourceQuality "1"]
[TimeControl "40/5400+30:1800+30"]

1. d4 {[%emt 0:00:00]} d5 {[%emt 0:00:28]} 2. c4 {[%emt 0:00:00]} e6 {[%emt 0:00:09]} 3. Nc3 {[%emt 0:00:00]} c6 {[%emt 0:00:58]} 4. e4 {[%emt 0:00:00]} dxe4 {[%emt 0:00:42]} 5. Nxe4 {[%emt 0:00:00]} c5 {[%emt 0:00:17]} 6. Nxc5 {[%emt 0:04:16]} Bxc5 {[%emt 0:05:10]} 7. dxc5 {[%emt 0:00:07]} Qxd1+ {[%emt 0:00:19]} 8. Kxd1 {[%emt 0:00:07]} Nf6 {[%emt 0:21:05]} 9. g3 {[%emt 0:10:52]} Na6 {[%emt 0:11:25]} 10. c6 {[%emt 0:08:13]} bxc6 {[%emt 0:01:51]} 11. Bg2 {[%emt 0:00:55]} O-O {[%emt 0:13:08]} 12. Bxc6 {[%emt 0:06:36]} Rb8 {[%emt 0:08:54]} 13. Ke2 {[%emt 0:12:16]} Nb4 {[%emt 0:04:06]} 14. Ba4 {[%emt 0:02:12]} Ba6 {[%emt 0:05:45]} 15. b3 {[%emt 0:11:35]} Nc2 {[%emt 0:01:55]} 16. Rb1 {[%emt 0:01:45]} Bxc4+ {[%emt 0:02:30]} 17. Kd2 {[%emt 0:05:13]} Bd5 {[%emt 0:05:59]} 18. f3 {[%emt 0:03:50]} Nd4 {[%emt 0:00:19]} 19. Bb2 {[%emt 0:04:42]} e5 {[%emt 0:03:50]} 20. Ba3 {[%emt 0:02:54]} Rfc8 {[%emt 0:01:21]} 21. Bd6 {[%emt 0:00:33]} Rc2+ {[%emt 0:00:38]} 22. Kd3 {[%emt 0:01:39]} Rbc8 {[%emt 0:00:39]} 23. Bxe5 {[%emt 0:00:14]} Nxf3 {[%emt 0:00:45]} 24. Nxf3 {[%emt 0:00:21]} Bxf3 {[%emt 0:00:29]} 25. Rhe1 {[%emt 0:01:17]} Rxh2 {[%emt 0:03:40]} 26. Rbc1 {[%emt 0:02:50]} Rd8+ {[%emt 0:00:50]} 27. Ke3 {[%emt 0:01:23]} Bg4 {[%emt 0:01:50]} 28. Bc6 {[%emt 0:03:14]} Rxa2 {[%emt 0:02:12]} 29. Bd4 {[%emt 0:02:08]} h6 {[%emt 0:00:50]} 30. Ra1 {[%emt 0:01:01]} Rc2 {[%emt 0:00:13]} 31. Rac1 {[%emt 0:01:05]} Rh2 {[%emt 0:01:26]} 32. b4 {[%emt 0:05:46]} Bh5 {[%emt 0:00:28]} 33. Rc5 {[%emt 0:02:31]} Ng4+ {[%emt 0:00:38]} 34. Kd3 {[%emt 0:00:27]} Bg6+ {[%emt 0:00:07]} 35. Kc4 {[%emt 0:00:56]} Rc2+ {[%emt 0:00:37]} 36. Bc3 {[%emt 0:01:03]} Rd3 {[%emt 0:01:00]} 37. Kb3 {[%emt 0:00:12]} Rxg3 {[%emt 0:00:23]} 38. Re8+ {[%emt 0:03:12]} Kh7 {[%emt 0:00:06]} 39. b5 {[%emt 0:01:59]} Nf6 {[%emt 0:00:23]} 40. Re7 {[%emt 0:00:23]} Rc1 {[%emt 0:01:35]} 41. Rc4 {[%emt 0:03:36]} Bd3 {[%emt 0:03:17]} 42. Rc5 {[%emt 0:02:14]} Bxb5 {[%emt 0:05:38]} 43. Rxf7 {[%emt 0:04:36]} Bxc6 {[%emt 0:03:27]} 44. Rxc6 {[%emt 0:00:08]} Nd5 {[%emt 0:00:57]} 45. Kc4 {[%emt 0:00:19]} 0-1

[Event "Lichtenrader Herbst 2019"]
[Site "Berlin"]
[Date "2019.10.19"]
[Round "8.8"]
[White "Miettinen, Teemu"]
[Black "Roehr, Tobias"]
[Result "1-0"]
[ECO "D85"]
[WhiteElo "2002"]
[BlackElo "2123"]
[Annotator "NA"]
[PlyCount "67"]
[EventDate "2019.10.12"]
[EventType "swiss"]
[EventCountry "GER"]
[SourceTitle "playchess.com"]
[Source "ChessBase"]
[SourceQuality "1"]
[TimeControl "40/5400+30:1800+30"]

1. d4 {[%emt 0:00:00]} Nf6 {[%emt 0:00:00]} 2. c4 {[%emt 0:00:00]} g6 {[%emt 0:00:00]} 3. Nc3 {[%emt 0:00:14]} d5 {[%emt 0:00:00]} 4. cxd5 {[%emt 0:01:09]} Nxd5 {[%emt 0:00:00]} 5. e4 {[%emt 0:00:08]} Nxc3 {[%emt 0:00:00]} 6. bxc3 {[%emt 0:00:01]} Bg7 {[%emt 0:00:15]} 7. Bb5+ {[%emt 0:00:06]} c6 {[%emt 0:01:39]} 8. Ba4 {[%emt 0:00:42]} O-O {[%emt 0:03:48]} 9. Ne2 {[%emt 0:00:04]} Nd7 {[%emt 0:10:14]} 10. O-O {[%emt 0:02:28]} b5 {[%emt 0:02:04]} 11. Bb3 {[%emt 0:02:59]} Bb7 {[%emt 0:01:55]} 12. Ng3 {[%emt 0:06:53]} e5 {[%emt 0:09:35]} 13. Be3 {[%emt 0:03:21]} Qh4 {[%emt 0:07:46]} 14. Qd2 {[%emt 0:10:58]} h6 {[%emt 0:01:39]} 15. f4 {[%emt 0:06:05]} exd4 {[%emt 0:04:35]} 16. cxd4 {[%emt 0:01:32]} Nf6 {[%emt 0:04:45]} 17. Bd1 {[%emt 0:02:40]} Rfd8 {[%emt 0:08:50]} 18. Rc1 {[%emt 0:08:38]} a5 {[%emt 0:05:39]} 19. f5 {[%emt 0:11:17]} Nxe4 {[%emt 0:04:35]} 20. Nxe4 {[%emt 0:03:19]} Qxe4 {[%emt 0:00:34]} 21. Rf4 {[%emt 0:02:20]} Qe8 {[%emt 0:06:54]} 22. fxg6 {[%emt 0:00:37]} fxg6 {[%emt 0:00:24]} 23. Bb3+ {[%emt 0:01:06]} Kh7 {[%emt 0:00:13]} 24. Rf7 {[%emt 0:18:02]} Rd7 {[%emt 0:10:37]} 25. Rcf1 {[%emt 0:00:05]} Rad8 {[%emt 0:05:02]} 26. Bxh6 {[%emt 0:02:09]} Rxf7 {[%emt 0:01:32]} 27. Rxf7 {[%emt 0:00:02]} Qxf7 {[%emt 0:00:08]} 28. Bxf7 {[%emt 0:00:13]} Bxh6 {[%emt 0:00:49]} 29. Qd3 {[%emt 0:02:58]} Rd6 {[%emt 0:00:17]} 30. Qe4 {[%emt 0:01:32]} Ba6 {[%emt 0:03:30]} 31. Qe5 {[%emt 0:05:43]} Bf8 {[%emt 0:02:10]} 32. h4 {[%emt 0:02:48]} Bc8 {[%emt 0:01:02]} 33. Qe8 {[%emt 0:02:25]} Kg7 {[%emt 0:00:07]} 34. Bb3 {[%emt 0:01:29]} 1-0

[Event "Lichtenrader Herbst 2019"]
[Site "Berlin"]
[Date "2019.10.20"]
[Round "9.1"]
[White "Shishkin, Vadim"]
[Black "Matthes, Aaron"]
[Result "1/2-1/2"]
[ECO "E21"]
[WhiteElo "2428"]
[BlackElo "1995"]
[Annotator "NA"]
[PlyCount "140"]
[EventDate "2019.10.12"]
[EventType "swiss"]
[EventCountry "GER"]
[SourceTitle "playchess.com"]
[Source "ChessBase"]
[SourceQuality "1"]
[TimeControl "40/5400+30:1800+30"]

1. d4 {[%emt 0:00:00]} Nf6 {[%emt 0:00:00]} 2. c4 {[%emt 0:00:00]} e6 {[%emt 0:00:00]} 3. Nc3 {[%emt 0:00:00]} Bb4 {[%emt 0:00:00]} 4. Nf3 {[%emt 0:00:00]} O-O {[%emt 0:00:00]} 5. Bg5 {[%emt 0:00:00]} c5 {[%emt 0:00:39]} 6. Rc1 {[%emt 0:00:14]} cxd4 {[%emt 0:00:14] E21: Nimzo-Indian: 4 Nf3} 7. Nxd4 {[%emt 0:00:16]} h6 {[%emt 0:00:04]} 8. Bh4 {[%emt 0:06:59]} d5 {[%emt 0:00:08]} 9. e3 {[%emt 0:01:51]} e5 {[%emt 0:01:06]} 10. Nf3 {[%emt 0:04:27]} d4 {[%emt 0:00:09]} 11. exd4 {[%emt 0:14:07]} exd4 {[%emt 0:00:09] Pin} 12. Bxf6 $146 {[%emt 0:22:49]} ({Predecessor:} 12. Nxd4 Qb6 13. Nf3 Rd8 14. Qc2 {0-1 (35) Edouard,R (2613)-Nakamura,H (2785) Caleta 2017}) 12... Qxf6 {[%emt 0:18:49]} 13. Qxd4 {[%emt 0:00:05]} Qe7+ {[%emt 0:01:10]} 14. Qe3 {[%emt 0:08:10]} Bxc3+ {[%emt 0:18:19]} 15. Rxc3 {[%emt 0:01:57]} Qb4 {[%emt 0:01:55]} 16. Qd2 {[%emt 0:01:45]} Nc6 {[%emt 0:00:50]} 17. a3 {[%emt 0:04:15]} Qa4 {[%emt 0:02:16]} 18. Be2 {[%emt 0:03:11]} Rd8 {[%emt 0:04:42]} 19. Qc2 {[%emt 0:14:47]} Qxc2 {[%emt 0:07:08]} 20. Rxc2 {[%emt 0:00:01]} Be6 {[%emt 0:00:22]} 21. O-O {[%emt 0:02:00]} Rac8 {[%emt 0:02:13]} 22. b4 {[%emt 0:04:44]} Nd4 {[%emt 0:01:08]} 23. Nxd4 {[%emt 0:00:07]} Rxd4 {[%emt 0:00:03]} 24. Rfc1 {[%emt 0:04:37]} Bf5 $16 {[%emt 0:00:27]} 25. Rc3 {[%emt 0:00:43]} a5 {[%emt 0:06:37]} 26. bxa5 {[%emt 0:00:43]} Rc5 {[%emt 0:00:08]} 27. Bf3 {[%emt 0:02:56]} Be4 {[%emt 0:00:50]} 28. Bxe4 {[%emt 0:01:31]} Rxe4 {[%emt 0:00:04]} 29. f3 {[%emt 0:00:16]} Re2 {[%emt 0:00:46]} 30. Kf1 {[%emt 0:00:43]} Rb2 {[%emt 0:04:19]} 31. R1c2 {[%emt 0:00:43]} Rb1+ {[%emt 0:03:04]} 32. Rc1 {[%emt 0:00:23]} Rb2 {[%emt 0:00:19]} 33. R1c2 {[%emt 0:00:03]} Rb1+ {[%emt 0:00:03]} 34. Kf2 {[%emt 0:00:19]} Rxa5 {[%emt 0:00:04]} 35. Rd2 {[%emt 0:01:37]} Rc5 {[%emt 0:00:24]} 36. Ke3 {[%emt 0:00:55]} Kf8 {[%emt 0:01:45]} 37. Kd3 {[%emt 0:00:36]} Ke7 {[%emt 0:00:25]} 38. Kc2 {[%emt 0:00:09]} Rb6 {[%emt 0:01:48]} 39. Re3+ {[%emt 0:00:40]} Kf6 {[%emt 0:00:12]} 40. Kc3 {[%emt 0:00:39]} Ra5 {[%emt 0:02:17]} 41. Kc2 {[%emt 0:30:40]} Rba6 {[%emt 0:36:48]} 42. Rd7 {[%emt 0:00:00]} Rxa3 {[%emt 0:00:00]} 43. Ree7 {[%emt 0:00:00]} Ra2+ {[%emt 0:00:00]} 44. Kc3 {[%emt 0:00:00]} R2a3+ {[%emt 0:00:00]} 45. Kd4 {[%emt 0:00:00]} Rd6+ {[%emt 0:00:00]} 46. Rxd6+ {[%emt 0:00:00]} Kxe7 {[%emt 0:00:00]} 47. Rb6 {[%emt 0:00:00]} Ra7 {[%emt 0:00:00]} 48. h4 {[%emt 0:00:00]} Kd7 {[%emt 0:00:00]} 49. Rb5 {[%emt 0:00:00]} Kc6 {[%emt 0:00:00]} 50. Rc5+ {[%emt 0:00:00]} Kd6 {[%emt 0:00:00]} 51. Rd5+ {[%emt 0:00:00]} Kc6 {[%emt 0:00:00]} 52. Rf5 {[%emt 0:00:00]} b6 {[%emt 0:00:00]} 53. h5 {[%emt 0:00:00]} Ra2 {[%emt 0:00:00]} 54. g4 {[%emt 0:02:07]} f6 {[%emt 0:00:00]} 55. Rf4 {[%emt 0:00:23]} Ra5 {[%emt 0:00:00]} 56. Re4 {[%emt 0:00:33]} Kd7 {[%emt 0:00:00]} 57. Re3 {[%emt 0:00:06]} Rg5 {[%emt 0:00:00]} 58. Rd3 {[%emt 0:01:06]} b5 {[%emt 0:04:53]} 59. f4 {[%emt 0:01:12]} Rxg4 {[%emt 0:01:26]} 60. Kc5+ {[%emt 0:00:04]} Kc8 {[%emt 0:01:11]} 61. cxb5 {[%emt 0:00:05]} Rxf4 {[%emt 0:00:59]} 62. Rg3 {[%emt 0:01:39]} Rf5+ {[%emt 0:02:38]} 63. Kc6 {[%emt 0:00:04]} Rxh5 {[%emt 0:00:15]} 64. Rxg7 {[%emt 0:00:13]} Rg5 {[%emt 0:00:14]} 65. Rf7 {[%emt 0:03:25]} Rg8 {[%emt 0:00:18]} 66. Kb6 {[%emt 0:00:48]} Kb8 {[%emt 0:00:08]} 67. Ka6 {[%emt 0:00:07]} h5 {[%emt 0:01:00]} 68. b6 {[%emt 0:00:28]} f5 {[%emt 0:00:58]} 69. Rb7+ {[%emt 0:00:38]} Ka8 {[%emt 0:00:11]} 70. Ra7+ {[%emt 0:00:07]} Kb8 {[%emt 0:00:03]} 1/2-1/2

[Event "Lichtenrader Herbst 2019"]
[Site "Berlin"]
[Date "2019.10.20"]
[Round "9.2"]
[White "Starostits, Ilmars"]
[Black "Postler, Reinhard"]
[Result "1-0"]
[ECO "E04"]
[WhiteElo "2479"]
[BlackElo "2240"]
[Annotator "ChessBase"]
[PlyCount "53"]
[EventDate "2019.10.12"]
[EventType "swiss"]
[EventCountry "GER"]
[SourceTitle "playchess.com"]
[Source "ChessBase"]
[SourceQuality "1"]
[TimeControl "40/5400+30:1800+30"]

1. d4 {[%emt 0:00:00]} d5 {[%emt 0:00:00]} 2. c4 {[%emt 0:00:00]} e6 {[%emt 0:00:00]} 3. Nf3 {[%emt 0:00:00]} Nf6 {[%emt 0:00:39]} 4. g3 {[%emt 0:00:00]} c6 {[%emt 0:00:31]} 5. Bg2 {[%emt 0:00:06]} dxc4 {[%emt 0:00:12]} 6. O-O {[%emt 0:00:42]} b5 {[%emt 0:01:34]} 7. a4 {[%emt 0:00:31]} Bb7 {[%emt 0:00:57]} 8. b3 {[%emt 0:02:30]} cxb3 {[%emt 0:03:52]} 9. Qxb3 {[%emt 0:00:05]} c5 {[%emt 0:04:39]} 10. dxc5 {[%emt 0:01:15]} Nfd7 {[%emt 0:06:14]} 11. Be3 {[%emt 0:09:58]} Qa5 {[%emt 0:05:16]} 12. Nbd2 {[%emt 0:24:01]} Bd5 {[%emt 0:10:11]} 13. Qb2 {[%emt 0:04:58]} b4 {[%emt 0:02:50]} 14. Rfc1 {[%emt 0:01:45]} Nc6 {[%emt 0:08:05]} 15. Bh6 {[%emt 0:12:13]} Nf6 {[%emt 0:12:24]} 16. e4 {[%emt 0:01:03]} Nxe4 {[%emt 0:01:46]} 17. Nxe4 {[%emt 0:00:42]} Bxe4 {[%emt 0:01:38]} 18. Bxg7 {[%emt 0:00:32]} Rg8 {[%emt 0:02:39]} 19. Bxf8 {[%emt 0:00:43]} Kxf8 {[%emt 0:02:08]} 20. Ng5 {[%emt 0:03:05]} Rxg5 {[%emt 0:02:59]} 21. Bxe4 {[%emt 0:01:00]} Rc8 {[%emt 0:01:03]} 22. Qf6 {[%emt 0:01:46]} Qd8 {[%emt 0:04:15]} 23. Qh8+ {[%emt 0:00:56]} Rg8 {[%emt 0:00:41]} 24. Qxh7 {[%emt 0:00:36]} Nd4 {[%emt 0:01:27]} 25. Qh6+ {[%emt 0:00:29]} Rg7 {[%emt 0:01:55]} 26. Rd1 {[%emt 0:00:28]} e5 {[%emt 0:00:48]} 27. Qh8+ {[%emt 0:00:13]} 1-0

[Event "Lichtenrader Herbst 2019"]
[Site "Berlin"]
[Date "2019.10.20"]
[Round "9.3"]
[White "Holinka, Henning"]
[Black "Kovalev, Andrei"]
[Result "1/2-1/2"]
[ECO "B41"]
[WhiteElo "2101"]
[BlackElo "2511"]
[Annotator "ChessBase"]
[PlyCount "106"]
[EventDate "2019.10.12"]
[EventType "swiss"]
[EventCountry "GER"]
[SourceTitle "playchess.com"]
[Source "ChessBase"]
[SourceQuality "1"]
[TimeControl "40/5400+30:1800+30"]

1. e4 {[%emt 0:00:00]} c5 {[%emt 0:00:00]} 2. Nf3 {[%emt 0:00:00]} e6 {[%emt 0:00:03]} 3. d4 {[%emt 0:00:00]} cxd4 {[%emt 0:00:05]} 4. Nxd4 {[%emt 0:00:00]} a6 {[%emt 0:00:02]} 5. c4 {[%emt 0:06:31]} Nf6 {[%emt 0:00:10]} 6. Nc3 {[%emt 0:00:42]} Qc7 {[%emt 0:00:04]} 7. Be2 {[%emt 0:07:50]} b6 {[%emt 0:02:39]} 8. O-O {[%emt 0:15:29]} Bb7 {[%emt 0:00:55]} 9. Qd3 {[%emt 0:03:34]} d6 {[%emt 0:02:42]} 10. f4 {[%emt 0:04:20]} Nbd7 {[%emt 0:00:31]} 11. b4 {[%emt 0:01:02]} a5 {[%emt 0:35:25]} 12. Ndb5 {[%emt 0:14:47]} Qb8 {[%emt 0:00:16]} 13. bxa5 {[%emt 0:04:54]} Nc5 {[%emt 0:07:47]} 14. Qc2 {[%emt 0:09:52]} Rxa5 {[%emt 0:02:42]} 15. Bf3 {[%emt 0:07:09]} Be7 {[%emt 0:04:36]} 16. Be3 {[%emt 0:01:20]} O-O {[%emt 0:02:38]} 17. Bxc5 {[%emt 0:04:12]} bxc5 {[%emt 0:11:16]} 18. e5 {[%emt 0:00:21]} dxe5 {[%emt 0:01:11]} 19. fxe5 {[%emt 0:00:35]} Nd7 {[%emt 0:00:24]} 20. Bxb7 {[%emt 0:00:13]} Qxb7 {[%emt 0:00:05]} 21. Rae1 {[%emt 0:00:43]} Ra6 {[%emt 0:03:37]} 22. Rf3 {[%emt 0:09:46]} Qb8 {[%emt 0:03:56]} 23. Rh3 {[%emt 0:01:12]} h6 {[%emt 0:00:33]} 24. Qe4 {[%emt 0:00:24]} Bg5 {[%emt 0:04:02]} 25. Rd3 {[%emt 0:01:47]} Rd8 {[%emt 0:01:08]} 26. Red1 {[%emt 0:01:14]} Nf8 {[%emt 0:01:35]} 27. Rxd8 {[%emt 0:00:53]} Bxd8 {[%emt 0:00:02]} 28. Rd6 {[%emt 0:00:42]} Qc8 {[%emt 0:08:45]} 29. Qe3 {[%emt 0:03:31]} Bg5 {[%emt 0:00:38]} 30. Qd3 {[%emt 0:00:32]} Ra8 {[%emt 0:01:24]} 31. Qe4 {[%emt 0:00:24]} Ra6 {[%emt 0:02:07]} 32. a3 {[%emt 0:00:36]} Be7 {[%emt 0:00:36]} 33. Rxa6 {[%emt 0:00:41]} Qxa6 {[%emt 0:00:03]} 34. Qd3 {[%emt 0:00:42]} Qc6 {[%emt 0:01:42]} 35. Qe4 {[%emt 0:00:48]} Qxe4 {[%emt 0:01:02]} 36. Nxe4 {[%emt 0:00:05]} Nd7 {[%emt 0:00:02]} 37. a4 {[%emt 0:00:50]} Nxe5 {[%emt 0:01:08]} 38. Ned6 {[%emt 0:00:25]} Bxd6 {[%emt 0:02:02]} 39. Nxd6 {[%emt 0:00:02]} Nc6 {[%emt 0:00:08]} 40. Nb7 {[%emt 0:00:54]} Ne5 {[%emt 0:01:21]} 41. a5 {[%emt 0:09:59]} Nxc4 {[%emt 0:01:09]} 42. Kf2 {[%emt 0:02:47]} Kf8 {[%emt 0:00:46]} 43. a6 {[%emt 0:00:26]} Nb6 {[%emt 0:00:23]} 44. Nxc5 {[%emt 0:00:13]} Nc8 {[%emt 0:03:11]} 45. Ke3 {[%emt 0:03:45]} Ke7 {[%emt 0:00:08]} 46. Kd4 {[%emt 0:01:22]} Kd6 {[%emt 0:13:19]} 47. Nb7+ {[%emt 0:01:44]} Kc7 {[%emt 0:00:04]} 48. Kc5 {[%emt 0:01:13]} h5 {[%emt 0:02:53]} 49. h4 {[%emt 0:01:22]} f6 {[%emt 0:01:16]} 50. Na5 {[%emt 0:00:47]} Na7 {[%emt 0:00:33]} 51. Nc4 {[%emt 0:00:42]} Nc8 {[%emt 0:02:08]} 52. Na5 {[%emt 0:01:40]} Na7 {[%emt 0:02:20]} 53. Nc4 {[%emt 0:00:47]} Nc8 {[%emt 0:00:25]} 1/2-1/2

[Event "Lichtenrader Herbst 2019"]
[Site "Berlin"]
[Date "2019.10.20"]
[Round "9.4"]
[White "Noetzel, Felix"]
[Black "Miettinen, Teemu"]
[Result "1-0"]
[ECO "E94"]
[WhiteElo "2233"]
[BlackElo "2002"]
[Annotator "NA"]
[PlyCount "95"]
[EventDate "2019.10.12"]
[EventType "swiss"]
[EventCountry "GER"]
[SourceTitle "playchess.com"]
[Source "ChessBase"]
[SourceQuality "1"]
[TimeControl "40/5400+30:1800+30"]

1. c4 {[%emt 0:00:00]} Nf6 {[%emt 0:00:00]} 2. Nc3 {[%emt 0:00:07]} g6 {[%emt 0:01:12]} 3. Nf3 {[%emt 0:01:58]} Bg7 {[%emt 0:01:04]} 4. e4 {[%emt 0:01:23]} d6 {[%emt 0:00:57]} 5. d4 {[%emt 0:00:58]} Nbd7 {[%emt 0:00:11]} 6. Be2 {[%emt 0:01:33]} e5 {[%emt 0:02:12]} 7. O-O {[%emt 0:02:53]} O-O {[%emt 0:00:15]} 8. h3 {[%emt 0:04:50]} Re8 {[%emt 0:01:23]} 9. d5 {[%emt 0:06:57]} Nc5 {[%emt 0:06:03]} 10. Qc2 {[%emt 0:00:44]} a5 {[%emt 0:00:28]} 11. a3 {[%emt 0:09:15]} Nh5 {[%emt 0:14:11]} 12. Be3 {[%emt 0:09:03]} Nf4 {[%emt 0:15:38]} 13. b4 {[%emt 0:03:45]} axb4 {[%emt 0:03:39]} 14. axb4 {[%emt 0:00:23]} Rxa1 {[%emt 0:00:29]} 15. Rxa1 {[%emt 0:00:05]} Na6 {[%emt 0:08:17]} 16. Rb1 {[%emt 0:07:04]} f5 {[%emt 0:08:35]} 17. Bd3 {[%emt 0:05:18]} Nxd3 {[%emt 0:08:06]} 18. Qxd3 {[%emt 0:00:08]} f4 {[%emt 0:00:21]} 19. Bd2 {[%emt 0:01:04]} g5 {[%emt 0:00:38]} 20. Nh2 {[%emt 0:04:44]} Rf8 {[%emt 0:01:45]} 21. f3 {[%emt 0:03:41]} h5 {[%emt 0:02:09]} 22. Nd1 {[%emt 0:04:59]} Bf6 {[%emt 0:00:53]} 23. Nf2 {[%emt 0:01:48]} Be7 {[%emt 0:00:25]} 24. Qc2 {[%emt 0:03:44]} Qe8 {[%emt 0:05:05]} 25. Nd3 {[%emt 0:03:10]} Qg6 {[%emt 0:00:14]} 26. Qd1 {[%emt 0:03:47]} Nb8 {[%emt 0:02:23]} 27. Qe2 {[%emt 0:01:49]} Nd7 {[%emt 0:00:07]} 28. Ra1 {[%emt 0:03:28]} Nf6 {[%emt 0:02:13]} 29. Nf2 {[%emt 0:00:45]} Kf7 {[%emt 0:02:51]} 30. Bc3 {[%emt 0:03:51]} Rg8 {[%emt 0:00:57]} 31. Kf1 {[%emt 0:00:44]} g4 {[%emt 0:01:17]} 32. fxg4 {[%emt 0:03:15]} hxg4 {[%emt 0:00:03]} 33. Nhxg4 {[%emt 0:00:05]} Bxg4 {[%emt 0:00:54]} 34. hxg4 {[%emt 0:00:34]} Nxg4 {[%emt 0:03:35]} 35. Qxg4 {[%emt 0:01:08]} Qxg4 {[%emt 0:00:07]} 36. Nxg4 {[%emt 0:00:04]} Rxg4 {[%emt 0:00:09]} 37. Ra7 {[%emt 0:00:46]} Rg3 {[%emt 0:01:25]} 38. Be1 {[%emt 0:01:14]} Re3 {[%emt 0:00:01]} 39. Rxb7 {[%emt 0:00:31]} Rxe4 {[%emt 0:03:25]} 40. Rxc7 {[%emt 0:00:21]} Ke8 {[%emt 0:00:14]} 41. Bf2 {[%emt 0:31:05]} Kd8 {[%emt 0:35:16]} 42. Rc6 {[%emt 0:00:52]} Kd7 {[%emt 0:00:12]} 43. b5 {[%emt 0:01:15]} f3 {[%emt 0:00:49]} 44. gxf3 {[%emt 0:01:12]} Rf4 {[%emt 0:00:05]} 45. Ke2 {[%emt 0:01:06]} e4 {[%emt 0:00:19]} 46. fxe4 {[%emt 0:01:19]} Rxe4+ {[%emt 0:00:01]} 47. Kd3 {[%emt 0:00:27]} Rf4 {[%emt 0:00:25]} 48. Be3 {[%emt 0:00:45]} 1-0